bitfinex-derivatives/quotes_BTCF0:USTF0_20251229
["timestamp","ask_amount","ask_price","bid_price","bid_amount"]
[1766973903161,0.0112487,88979.0,88940.0,0.11241954]
[1766973903356,0.00016863,88968.0,88951.0,0.00016863]
[1766973903665,3e-08,88968.0,88952.0,0.0572]
[1766973903868,0.011247,88992.0,88952.0,0.18288]
[1766973904064,0.011248,88984.0,88959.0,0.0112512]
[1766973904262,0.09568,89001.0,88960.0,0.15288]
[1766973904263,0.0112474,88989.0,88960.0,0.15288]
[1766973904467,0.0112474,88989.0,88960.0,0.18288]
[1766973904975,0.0112469,88993.0,88970.0,0.0112497]
[1766973905269,0.0112443,89014.0,88971.0,0.0572]
[1766973905570,0.011243,89024.0,88971.0,0.54742566]
[1766973905769,0.0572,89028.0,88972.0,0.0112495]
[1766973905968,0.00022464,89030.0,88988.0,0.0112475]
[1766973906171,0.00022464,89030.0,89003.0,0.0112455]
[1766973906466,0.00022464,89030.0,89013.0,0.0112443]
[1766973906661,4.64e-06,89030.0,89014.0,0.15292]
[1766973906859,4.64e-06,89030.0,89015.0,0.15288]
[1766973907060,4.64e-06,89030.0,89016.0,0.106924]
[1766973907265,0.01290885,89066.0,89021.0,0.0112432]
[1766973907464,0.0112368,89073.0,89022.0,0.0112432]
[1766973907765,0.09568,89065.0,89023.0,0.15288]
[1766973907964,0.09568,89065.0,89023.0,0.29521178]
[1766973908358,0.0112402,89047.0,89034.0,0.00016852]
[1766973908565,0.09568,89065.0,89035.0,0.15284]
[1766973908767,0.0612376,89067.0,89036.0,0.0112414]
[1766973909070,0.0612376,89067.0,89034.0,0.00016852]
[1766973909071,0.0112387,89058.0,89034.0,0.00016852]
[1766973909262,0.05,89067.0,89035.0,0.10256]
[1766973909263,0.0112398,89050.0,89035.0,0.10256]
[1766973909762,0.011238,89064.0,89035.0,0.10256]
[1766973909969,0.05,89067.0,89035.0,0.10256]
[1766973910269,0.05,89067.0,89015.0,0.23916]
[1766973910270,0.0112406,89044.0,89022.0,0.15284]
[1766973910471,0.0112412,89039.0,89022.0,0.15284]
[1766973910668,0.09564,89049.0,89022.0,0.15284]
[1766973910871,0.0112421,89032.0,89014.0,0.15284]
[1766973911073,0.0112414,89037.0,89014.0,0.15284]
[1766973911372,0.0112419,89033.0,89017.0,2e-08]
[1766973911868,0.09564,89049.0,89017.0,2e-08]
[1766973912066,0.0112386,89059.0,89018.0,0.11231475]
[1766973912268,0.02188164,89084.0,89021.0,0.0112434]
[1766973912269,0.0112391,89055.0,89021.0,0.0112434]
[1766973912572,0.1068783,89062.0,89021.0,0.03]
[1766973912763,0.1068783,89062.0,89022.0,0.26520799]
[1766973912764,0.0112403,89046.0,89022.0,0.26520799]
[1766973912970,0.0112408,89042.0,89022.0,0.26520799]
[1766973913170,0.0001685,89043.0,89023.0,0.15284]
[1766973913468,0.0001685,89043.0,89021.0,0.15284]
[1766973913663,0.0001685,89043.0,89024.0,0.11231664]
[1766973913870,0.0112391,89055.0,89025.0,0.0112427]
[1766973914060,0.09784561,89063.0,89017.0,2e-08]
[1766973914266,0.01124,89048.0,89018.0,0.1528]
[1766973914465,0.0956,89051.0,89017.0,2e-08]
[1766973914767,0.0956,89051.0,88975.0,0.0112492]
[1766973914768,0.16550942,89040.0,88987.0,0.0956]
[1766973914969,0.16550942,89040.0,88979.0,0.0956]
[1766973914970,0.0112445,89013.0,88979.0,0.0956]
[1766973915169,0.0112418,89034.0,88999.0,0.11233556]
[1766973915368,0.0112419,89033.0,89003.0,0.0112456]
[1766973915676,0.0112425,89029.0,89009.0,0.00016852]
[1766973916076,0.00011846,89028.0,89009.0,0.00016852]
[1766973916274,0.0112426,89027.0,89009.0,0.00016852]
[1766973917070,0.0112431,89023.0,89009.0,0.00016852]
[1766973917363,0.0112438,89018.0,89000.0,0.15284]
[1766973917568,0.0112438,89018.0,89000.0,0.03]
[1766973917875,0.0956,89022.0,88974.0,0.01302656]
[1766973917876,0.0112443,89014.0,88996.0,0.1436]
[1766973918076,0.0112443,89014.0,88996.0,0.0956]
[1766973918274,0.0112454,89006.0,88996.0,0.00016852]
[1766973918472,0.0112458,89002.0,88984.0,0.05728]
[1766973918777,0.00016852,89014.0,88994.0,0.0112467]
[1766973918962,0.0112394,89053.0,88994.0,0.0112467]
[1766973918963,0.0112423,89030.0,89006.0,0.0112452]
[1766973919167,0.23904,89061.0,89007.0,0.15288]
[1766973919168,0.0956,89039.0,89007.0,0.15288]
[1766973919475,0.0112409,89041.0,89016.0,0.0112439]
[1766973919675,0.0112406,89043.0,89018.0,0.0112437]
[1766973919879,0.00016852,89039.0,89022.0,0.00016852]
[1766973920074,0.00016852,89039.0,89022.0,0.01141172]
[1766973920275,0.0112399,89049.0,89022.0,0.00016852]
[1766973920674,0.0956,89059.0,89022.0,0.00016852]
[1766973920875,0.011241,89041.0,89022.0,0.00016852]
[1766973921075,0.011241,89041.0,89023.0,0.15288]
[1766973921781,0.0112413,89038.0,89023.0,0.15288]
[1766973921976,0.0112413,89038.0,89022.0,0.00016852]
[1766973921977,0.0112419,89033.0,89022.0,0.00016852]
[1766973922177,0.0112362,89078.0,89022.0,0.01141162]
[1766973922386,0.011241,89040.0,89022.0,0.00016852]
[1766973922578,0.0112414,89037.0,89022.0,0.00016852]
[1766973922880,0.0956,89043.0,89022.0,0.00016852]
[1766973922881,0.1068406,89043.0,89022.0,0.00016852]
[1766973923089,0.0956,89043.0,89022.0,0.00016852]
[1766973924068,0.0956,89050.0,89027.0,0.0112425]
[1766973924381,0.011234,89095.0,89031.0,0.0112421]
[1766973924382,0.0956,89059.0,89031.0,0.0112421]
[1766973924581,0.0956,89059.0,89032.0,0.15284]
[1766973924881,0.0956,89059.0,89033.0,0.0112418]
[1766973925180,0.0112353,89085.0,89032.0,0.15284]
[1766973925181,0.09784561,89063.0,89032.0,0.15284]
[1766973925876,0.09784561,89063.0,89022.0,0.00016852]
[1766973926082,0.09784561,89063.0,89028.0,0.0112424]
[1766973926083,0.011239,89056.0,89028.0,0.0112424]
[1766973926380,0.09784561,89063.0,89022.0,0.00016852]
[1766973926381,0.0112404,89045.0,89022.0,0.00016852]
[1766973926578,0.00224561,89063.0,89027.0,0.0112425]
[1766973926781,0.0112392,89055.0,89030.0,0.0112422]
[1766973926978,0.1424,89062.0,89027.0,0.0112425]
[1766973927174,0.011239,89056.0,89030.0,0.0112421]
[1766973927489,0.15284,89055.0,89022.0,0.00016852]
[1766973927677,0.0112395,89052.0,89022.0,0.09588852]
[1766973927980,0.09556,89054.0,89022.0,0.00016852]
[1766973927981,0.1067993,89054.0,89022.0,0.00016852]
[1766973928283,0.0112396,89051.0,89022.0,0.00016852]
[1766973929076,0.00224561,89063.0,89022.0,0.00016852]
[1766973929276,0.0112395,89052.0,89025.0,0.0112428]
[1766973929484,0.0112395,89052.0,89022.0,0.02016852]
[1766973929485,0.09556,89051.0,89026.0,0.0112426]
[1766973930182,0.0112382,89062.0,89032.0,0.0112418]
[1766973930378,0.0112397,89051.0,89022.0,0.01141162]
[1766973930586,0.0112397,89051.0,89028.0,0.0112424]
[1766973930587,0.09556,89051.0,89028.0,0.0112424]
[1766973930979,0.09556,89051.0,89022.0,0.00016852]
[1766973931175,0.0112407,89043.0,89023.0,0.01757647]
[1766973931384,0.0112411,89040.0,89022.0,0.00016852]
[1766973931585,0.09556,89051.0,89022.0,0.00016852]
[1766973931586,0.0112414,89037.0,89022.0,0.00016852]
[1766973931981,0.024144,89062.0,89022.0,0.00016852]
[1766973931982,0.05732,89048.0,89022.0,0.00016852]
[1766973932183,0.011241,89041.0,89022.0,0.00016852]
[1766973932376,0.0112403,89045.0,89023.0,0.01757749]
[1766973932584,0.0112408,89042.0,89024.0,0.01757749]
[1766973932782,0.0112408,89042.0,89025.0,0.01757749]
[1766973932976,0.0112416,89035.0,89022.0,0.00016852]
[1766973933288,0.0112411,89039.0,89023.0,0.01757793]
[1766973933488,0.09556,89044.0,89024.0,0.01757793]
[1766973933684,0.0112412,89038.0,89025.0,0.01757793]
[1766973933881,0.011241,89040.0,89022.0,0.00016852]
[1766973934082,0.09556,89044.0,89022.0,0.00016852]
[1766973934387,0.0112415,89036.0,89022.0,0.00016852]
[1766973934593,0.0112423,89030.0,89004.0,0.05076356]
[1766973934790,0.09556,89029.0,89003.0,0.09556]
[1766973935084,0.09556,89041.0,89003.0,0.12556]
[1766973935291,0.0112405,89044.0,89020.0,0.0112434]
[1766973935482,0.09556,89049.0,89025.0,0.0112428]
[1766973935678,0.00016852,89041.0,89023.0,0.00016852]
[1766973935892,0.0112415,89037.0,89023.0,0.00016852]
[1766973936080,0.0112418,89034.0,89011.0,0.0112446]
[1766973936280,0.0112418,89034.0,89011.0,0.0412446]
[1766973936481,0.00016852,89041.0,89011.0,0.03]
[1766973936681,0.00016852,89041.0,89017.0,0.0112437]
[1766973936887,0.0112413,89038.0,89017.0,0.03]
[1766973937090,0.0112413,89038.0,89019.0,0.00016852]
[1766973937290,0.0112413,89038.0,89014.0,0.09556]
[1766973937291,0.0112418,89034.0,89009.0,0.0112449]
[1766973937478,0.05732,89035.0,89009.0,0.03]
[1766973937680,0.05732,89035.0,89000.0,0.0112459]
[1766973937879,0.0112424,89029.0,89004.0,0.0112455]
[1766973938092,0.00016852,89041.0,89004.0,0.0112455]
[1766973938093,0.09556,89032.0,89004.0,0.03]
[1766973938277,0.0112426,89028.0,89004.0,0.03]
[1766973938590,0.011242,89032.0,89007.0,0.00016852]
[1766973938789,0.011242,89032.0,89009.0,0.0112449]
[1766973939085,0.011242,89032.0,89007.0,0.00016852]
[1766973939289,0.05732,89035.0,89007.0,0.00016852]
[1766973939584,0.05732,89035.0,88969.0,0.03951816]
[1766973939585,0.16550942,89030.0,88969.0,0.03951816]
[1766973939783,0.0112429,89025.0,88966.0,0.09556]
[1766973939980,0.011245,89009.0,88966.0,0.09556]
[1766973940176,0.15292,89008.0,88972.0,0.0112495]
[1766973940388,0.00016852,89000.0,88982.0,0.00016852]
[1766973940590,0.00016852,89000.0,88987.0,0.0112476]
[1766973940886,0.06074737,89035.0,88982.0,0.00016852]
[1766973940887,0.01107727,89002.0,88982.0,0.00016852]
[1766973941080,0.0112463,88999.0,88982.0,0.00016852]
[1766973941279,0.0112459,89001.0,88982.0,0.00016852]
[1766973941476,0.0112469,88993.0,88974.0,0.00011596]
[1766973941787,0.0112474,88990.0,88974.0,0.00011596]
[1766973941982,0.02232,89009.0,88957.0,0.0112514]
[1766973941983,0.0112482,88983.0,88957.0,0.0112514]
[1766973942187,0.0112486,88980.0,88957.0,0.03]
[1766973942490,0.011249,88977.0,88947.0,0.0686126]
[1766973942686,0.00016852,88971.0,88954.0,0.0112517]
[1766973942889,2e-08,88971.0,88954.0,0.03]
[1766973943088,0.0956,88988.0,88954.0,0.03]
[1766973943291,0.0956,88988.0,88974.0,0.0112492]
[1766973943482,0.0956,88988.0,88977.0,0.0112488]
[1766973943682,0.0956,88988.0,88972.0,0.0112495]
[1766973943878,0.0956,88999.0,88976.0,0.0112489]
[1766973944192,0.00016852,88996.0,88979.0,0.00016852]
[1766973944395,0.00016852,88996.0,88984.0,0.0112479]
[1766973944592,0.05736,89015.0,88990.0,0.0112472]
[1766973944792,0.05736,89015.0,88984.0,0.01]
[1766973944793,0.0956,89011.0,88988.0,0.0112475]
[1766973945097,0.0956,89011.0,88993.0,0.0112468]
[1766973945392,0.0956,89011.0,88989.0,0.0112474]
[1766973945588,0.00016852,89009.0,88979.0,0.09576852]
[1766973946088,0.00016852,89009.0,88980.0,0.01758568]
[1766973946089,0.0112453,89006.0,88980.0,0.01758568]
[1766973946291,0.00016852,89009.0,88981.0,0.01758568]
[1766973946495,0.00016852,89009.0,88979.0,0.00016852]
[1766973946791,0.00016852,89009.0,88980.0,0.0112485]
[1766973947095,0.00016852,89009.0,88979.0,0.00016852]
[1766973947296,0.0112451,89008.0,88979.0,0.01141712]
[1766973947496,0.0112454,89005.0,88979.0,0.01141712]
[1766973947801,0.0112474,88989.0,88963.0,0.0112507]
[1766973948092,0.0112452,89007.0,88955.0,0.0956]
[1766973948093,0.15296,88988.0,88955.0,0.0956]
[1766973948292,0.15296,88987.0,88951.0,0.11236649]
[1766973948496,0.0112499,88970.0,88946.0,0.1068528]
[1766973948697,0.0112499,88970.0,88941.0,0.05758464]
[1766973948698,0.0112501,88968.0,88944.0,0.011253]
[1766973948991,0.00016862,88965.0,88947.0,0.00016862]
[1766973949898,0.0112479,88986.0,88947.0,0.00016862]
[1766973949899,0.0112433,89022.0,88948.0,0.11241512]
[1766973950086,0.0112461,89000.0,88970.0,0.0112497]
[1766973950283,0.0956,89001.0,88970.0,0.0956]
[1766973950488,0.0956,89003.0,88970.0,0.0956]
[1766973950694,0.0956,89003.0,88977.0,0.0112488]
[1766973950892,0.0112465,88997.0,88962.0,0.05744]
[1766973951095,0.00016862,88988.0,88971.0,0.00016862]
[1766973951292,0.09576862,88988.0,88964.0,0.0112505]
[1766973951598,0.09576862,88988.0,88964.0,0.0412505]
[1766973951791,0.0112477,88987.0,88960.0,0.106851]
[1766973951996,0.0112477,88987.0,88963.0,0.0112506]
[1766973952199,0.0112481,88984.0,88965.0,0.01122]
[1766973952399,0.0112481,88984.0,88966.0,0.00016862]
[1766973953103,0.00016862,88988.0,88966.0,0.03016862]
[1766973953295,0.0112407,89042.0,88999.0,0.0112461]
[1766973953497,0.0112435,89020.0,88999.0,0.011246]
[1766973953698,0.0956,89022.0,88999.0,0.011246]
[1766973953901,0.0956,89022.0,88995.0,0.0112466]
[1766973953902,0.0112434,89021.0,88995.0,0.0112466]
[1766973954194,0.06130909,89045.0,88995.0,0.0112466]
[1766973954195,0.0112418,89034.0,89008.0,0.0112449]
[1766973954502,0.08882326,89066.0,89018.0,0.0112436]
[1766973954503,0.00016852,89030.0,89018.0,0.0112436]
[1766973954696,0.00016852,89033.0,89015.0,0.00016852]
[1766973955198,0.01141042,89033.0,89015.0,0.00016852]
[1766973955396,0.0112423,89030.0,89015.0,0.00016852]
[1766973955599,0.00016852,89033.0,89015.0,0.00016852]
[1766973956599,0.00016852,89033.0,89018.0,0.0112437]
[1766973956893,0.00016852,89033.0,89015.0,0.03016852]
[1766973956894,0.00016852,89033.0,89015.0,0.00016852]
[1766973957092,0.00016852,89033.0,89015.0,0.03016852]
[1766973957891,0.00016852,89033.0,89015.0,0.00016852]
[1766973958192,0.00016852,89033.0,89016.0,0.0956]
[1766973958391,0.0112424,89029.0,89016.0,0.0956]
[1766973958985,0.0112424,89029.0,89015.0,0.00016852]
[1766973959186,0.0112424,89029.0,88973.0,0.04176605]
[1766973959187,0.11260513,89030.0,88989.0,0.0112474]
[1766973959501,0.0112449,89009.0,88996.0,0.0956]
[1766973959800,0.00022453,89075.0,88999.0,0.11260513]
[1766973960000,0.0112404,89045.0,89013.0,0.0112443]
[1766973960189,0.00016852,89038.0,89020.0,0.00016852]
[1766973960699,0.00016852,89038.0,89025.0,0.0112428]
[1766973961001,0.00016852,89038.0,89028.0,0.0112424]
[1766973961303,2e-08,89038.0,89035.0,0.00016852]
[1766973961503,0.0956,89053.0,89035.0,0.00016852]
[1766973961702,0.0112395,89052.0,89027.0,0.0112426]
[1766973962104,0.0956,89053.0,89026.0,0.00016852]
[1766973962298,0.0112408,89042.0,89026.0,0.00016852]
[1766973962700,0.0112413,89038.0,89026.0,0.09576852]
[1766973962900,0.0112408,89042.0,89026.0,0.09576852]
[1766973963202,0.0112408,89042.0,89026.0,0.00016852]
[1766973963401,0.00016852,89043.0,89026.0,0.01141112]
[1766973963998,0.00016852,89043.0,89026.0,0.00016852]
[1766973964199,0.0112407,89042.0,89026.0,0.00016852]
[1766973964392,0.11260513,89040.0,89026.0,0.00016852]
[1766973964704,0.00016852,89043.0,89026.0,0.00016852]
[1766973964901,0.0112412,89038.0,89026.0,0.00016852]
[1766973965405,0.0112412,89038.0,89025.0,0.00016852]
[1766973966301,0.0112415,89036.0,89025.0,0.00016852]
[1766973966602,0.00016852,89043.0,89025.0,0.00016852]
[1766973966904,0.00016852,89043.0,89027.0,0.0112425]
[1766973967207,0.01347916,89093.0,89027.0,0.0112425]
[1766973967208,0.0112387,89058.0,89035.0,0.0112416]
[1766973967603,0.0956,89059.0,89035.0,0.0112416]
[1766973967805,0.1068386,89059.0,89035.0,0.0412416]
[1766973968201,0.00016844,89056.0,89035.0,0.0112416]
[1766973968602,0.00016844,89056.0,89038.0,0.0112412]
[1766973968898,0.00016844,89056.0,89033.0,0.0956]
[1766973969098,0.00016844,89056.0,89039.0,0.11230024]
[1766973969299,0.00016844,89056.0,89040.0,0.0112409]
[1766973969605,0.00016844,89056.0,89042.0,0.0112407]
[1766973969803,0.00016844,89056.0,89043.0,0.09556]
[1766973970304,0.00016844,89056.0,89043.0,0.11556]
[1766973970804,0.00016844,89056.0,89044.0,0.01121]
[1766973970995,0.00016844,89056.0,89044.0,0.04121]
[1766973971198,0.00016844,89056.0,89046.0,0.11260513]
[1766973971408,0.00016844,89056.0,89047.0,0.15292]
[1766973971605,0.00016844,89056.0,89047.0,0.18292]
[1766973971908,0.00016844,89056.0,89048.0,0.12520041]
[1766973972098,0.00016844,89056.0,89048.0,0.15520041]
[1766973972295,0.00016844,89056.0,89049.0,0.01290395]
[1766973972604,4e-08,89056.0,89052.0,0.0112393]
[1766973973009,2e-08,89056.0,89052.0,0.0112393]
[1766973973509,2e-08,89056.0,89050.0,0.09038397]
[1766973973810,2e-08,89056.0,89049.0,0.05736]
[1766973973811,2e-08,89056.0,89051.0,0.16582308]
[1766973974304,0.00224486,89093.0,89051.0,0.15292]
[1766973974498,0.07299502,89150.0,89052.0,0.30653256]
[1766973974700,0.14923053,89140.0,89070.0,0.11260513]
[1766973974898,0.0112292,89134.0,89092.0,0.0112343]
[1766973975106,0.0112298,89129.0,89100.0,0.11260513]
[1766973975411,0.16045893,89140.0,89100.0,0.03]
[1766973975623,0.16045893,89140.0,89106.0,0.00016832]
[1766973975624,0.14923053,89140.0,89106.0,0.00016832]
[1766973975905,0.14923053,89140.0,89112.0,0.0112318]
[1766973976207,0.00224335,89153.0,89130.0,0.11260513]
[1766973976397,0.11260513,89180.0,89133.0,0.00016832]
[1766973976598,0.56076,89193.0,89133.0,0.00016832]
[1766973976803,0.1534,89192.0,89131.0,0.11884883]
[1766973977005,1.12152,89175.0,89128.0,0.1534]
[1766973977206,0.0112253,89165.0,89134.0,0.1122007]
[1766973977404,1.12152,89161.0,89129.0,0.05788]
[1766973977604,0.0112263,89156.0,89130.0,0.11260513]
[1766973977806,0.11260513,89150.0,89134.0,0.00016822]
[1766973978003,0.11260513,89150.0,89082.0,0.05865458]
[1766973978004,0.011228,89143.0,89109.0,0.09932]
[1766973978200,0.011228,89143.0,89089.0,0.01755882]
[1766973978201,0.00022419,89210.0,89117.0,0.03013607]
[1766973978399,0.0112243,89173.0,89135.0,0.12620016]
[1766973978604,0.106744,89175.0,89134.0,0.15368]
[1766973978804,0.0112261,89158.0,89120.0,0.0112308]
[1766973979008,0.0112238,89177.0,89135.0,0.11218056]
[1766973979198,0.0112257,89161.0,89147.0,2e-08]
[1766973979410,0.1154,89160.0,89117.0,0.00013607]
[1766973979712,0.0112277,89146.0,89117.0,0.00013607]
[1766973979903,0.15372,89159.0,89117.0,0.00013607]
[1766973979904,0.11260513,89150.0,89117.0,0.00013607]
[1766973980100,0.15372,89159.0,89118.0,4e-08]
[1766973980305,0.0112292,89134.0,89110.0,0.11260513]
[1766973980614,0.0112296,89130.0,89119.0,6e-08]
[1766973980813,0.0112303,89125.0,89113.0,0.00016822]
[1766973981106,0.0112304,89124.0,89113.0,2e-08]
[1766973981311,8.85e-05,89123.0,89113.0,2e-08]
[1766973981509,8.85e-05,89123.0,89075.0,0.0582]
[1766973981510,8.85e-05,89123.0,89065.0,0.03910884]
[1766973981704,8.85e-05,89123.0,89031.0,0.00022442]
[1766973981705,0.11260513,89110.0,89064.0,0.09552]
[1766973981899,0.15388,89109.0,89087.0,0.11220951]
[1766973982104,0.2388,89135.0,89050.0,0.2388]
[1766973982105,0.11260513,89100.0,89054.0,0.09552]
[1766973982305,0.11260513,89082.0,89044.0,0.16509]
[1766973982512,0.11260513,89080.0,89044.0,0.13673]
[1766973982707,0.01030296,89112.0,89070.0,0.11260513]
[1766973982708,0.09552,89091.0,89070.0,0.11260513]
[1766973982909,0.11260513,89110.0,89071.0,0.0112369]
[1766973983106,0.11260513,89130.0,89071.0,0.11223596]
[1766973983304,0.11260513,89120.0,89072.0,0.0112369]
[1766973983610,0.0112316,89115.0,89068.0,0.11224541]
[1766973983813,0.00016842,89100.0,89083.0,0.00016842]
[1766973984114,0.09552,89099.0,89068.0,0.11224541]
[1766973984411,0.00011064,89098.0,89060.0,0.1067584]
[1766973984613,0.15388,89097.0,89066.0,0.11224415]
[1766973984814,0.11260513,89080.0,89040.0,0.11260513]
[1766973985011,0.00016842,89071.0,89054.0,0.00016842]
[1766973985204,0.00016842,89071.0,89055.0,0.0112391]
[1766973985403,0.11260513,89100.0,89060.0,0.12384353]
[1766973985701,0.11260513,89100.0,89046.0,0.09552]
[1766973985702,0.11260513,89090.0,89058.0,0.0112387]
[1766973985905,0.11260513,89080.0,89047.0,0.01290309]
[1766973986105,0.11260513,89070.0,89046.0,0.0112402]
[1766973986307,0.15388,89079.0,89047.0,0.01290309]
[1766973986308,0.09552,89069.0,89047.0,0.01290309]
[1766973986609,0.11260513,89060.0,89024.0,0.0112429]
[1766973986816,0.11260513,89050.0,89024.0,0.0112429]
[1766973987008,1.65388,89059.0,89018.0,0.09552]
[1766973987009,0.11260513,89041.0,89018.0,0.0112436]
[1766973987213,1.5,89059.0,89023.0,0.0112431]
[1766973987404,0.11277355,89050.0,89032.0,0.00016842]
[1766973988200,0.11260513,89042.0,89017.0,0.0112438]
[1766973988402,0.11277355,89050.0,89004.0,0.0112455]
[1766973988607,0.15388,89049.0,89011.0,0.11230781]
[1766973988805,0.00013347,89058.0,89010.0,0.0112447]
[1766973989010,0.15388,89057.0,89040.0,0.0112409]
[1766973989199,0.15404842,89057.0,89046.0,0.0112401]
[1766973989404,0.15404842,89057.0,89041.0,0.0112408]
[1766973990011,0.15404842,89057.0,89036.0,0.0112415]
[1766973990198,0.15404842,89057.0,89025.0,0.00016842]
[1766973990400,0.11260513,89100.0,89063.0,0.0112379]
[1766973990401,0.09552,89069.0,89063.0,0.0112379]
[1766973990601,0.0584,89077.0,89066.0,0.0112376]
[1766973990805,0.09552,89085.0,89076.0,0.0112363]
[1766973991004,0.15392,89084.0,89076.0,0.0112363]
[1766973991306,0.09552,89084.0,89071.0,0.011237]
[1766973991509,0.11260513,89100.0,89060.0,0.11260513]
[1766973991707,0.11260513,89100.0,89058.0,0.09552]
[1766973991708,0.15392,89099.0,89058.0,0.09552]
[1766973991908,0.0112337,89098.0,89050.0,0.11260513]
[1766973992108,0.11260513,89070.0,89051.0,0.0112395]
[1766973992316,4.699e-05,89086.0,89040.0,0.11260513]
[1766973992508,2e-08,89072.0,89064.0,0.0112378]
[1766973992716,0.09552,89075.0,89053.0,0.0112393]
[1766973993015,0.09552,89075.0,89041.0,0.09552]
[1766973993016,0.0584,89074.0,89058.0,0.0112387]
[1766973993214,0.15392,89073.0,89041.0,0.09552]
[1766973993418,0.15392,89074.0,89062.0,0.0112381]
[1766973993808,0.15396699,89074.0,89060.0,0.0112384]
[1766973994011,0.15392,89074.0,89041.0,0.09552]
[1766973994215,0.00016842,89077.0,89044.0,0.0112404]
[1766973994407,0.00912,89076.0,89067.0,0.0112375]
[1766973994613,0.10464,89076.0,89067.0,0.0112375]
[1766973994810,4.699e-05,89072.0,89067.0,0.0112375]
[1766973995116,0.05836,89085.0,89074.0,0.0112366]
[1766973995304,1e-08,89085.0,89069.0,0.0112372]
[1766973995616,1e-08,89085.0,89047.0,0.0112401]
[1766973995805,0.15388,89084.0,89068.0,0.0112374]
[1766973996012,0.15388,89084.0,89067.0,0.0112375]
[1766973996315,0.15404842,89084.0,89067.0,0.01140592]
[1766973996617,0.15404842,89084.0,89067.0,0.00016842]
[1766973996814,2e-08,89084.0,89067.0,0.00016842]
[1766973997116,0.10444,89083.0,89067.0,0.00016842]
[1766973997420,2e-08,89084.0,89067.0,0.00016842]
[1766973997612,2e-08,89084.0,89072.0,0.0112369]
[1766973998011,0.11260513,89100.0,89076.0,0.0112364]
[1766973998212,0.3208,89139.0,89088.0,0.0112349]
[1766973998213,0.0112315,89116.0,89088.0,0.0112349]
[1766973998418,0.11260513,89110.0,89067.0,0.0112375]
[1766973998617,0.11260513,89100.0,89081.0,0.0112358]
[1766973998817,0.11260513,89100.0,89085.0,0.0112352]
[1766973999016,0.15384,89099.0,89084.0,0.00016842]
[1766973999218,0.15384,89099.0,89088.0,0.0112348]
[1766974000118,0.15384,89099.0,89085.0,0.00016842]
[1766974000720,0.00016842,89102.0,89085.0,0.00016842]
[1766974001019,0.0112301,89126.0,89100.0,0.0112333]
[1766974001217,0.3208,89171.0,89093.0,0.09552]
[1766974001218,2e-08,89120.0,89093.0,0.09552]
[1766974001412,0.12383353,89140.0,89116.0,0.0112313]
[1766974001607,0.11260513,89140.0,89093.0,0.09552]
[1766974001815,0.15384,89139.0,89122.0,0.0112305]
[1766974002013,0.0112285,89139.0,89113.0,0.0112317]
[1766974002213,0.1538,89138.0,89113.0,0.0112317]
[1766974002614,0.05828,89138.0,89098.0,0.01289509]
[1766974002816,0.3208,89167.0,89130.0,0.0112296]
[1766974003021,0.3208,89167.0,89099.0,0.01755991]
[1766974003022,0.09552,89180.0,89140.0,0.11260513]
[1766974003220,0.09552,89180.0,89148.0,0.0112273]
[1766974003422,4e-08,89161.0,89144.0,0.00016832]
[1766974003723,0.09552,89191.0,89144.0,0.03016832]
[1766974003918,0.05828,89190.0,89151.0,0.0112269]
[1766974004120,0.05828,89190.0,89145.0,0.11216735]
[1766974004121,0.0112223,89189.0,89145.0,0.11216735]
[1766974004325,0.0112223,89189.0,89115.0,0.02930104]
[1766974004527,0.05828,89190.0,89149.0,0.0112272]
[1766974004819,0.05828,89190.0,89161.0,0.00016822]
[1766974005025,0.11260513,89180.0,89161.0,0.00016822]
[1766974005220,0.05828,89190.0,89155.0,0.09552]
[1766974005420,0.11260513,89180.0,89155.0,0.09552]
[1766974005627,0.17088513,89190.0,89155.0,0.09552]
[1766974005824,0.11260513,89180.0,89145.0,0.1067077]
[1766974006019,0.11260513,89180.0,89138.0,0.0112286]
[1766974006220,0.00016789,89168.0,89140.0,0.11214471]
[1766974006411,0.00016789,89168.0,89138.0,0.09548]
[1766974006612,0.00016789,89168.0,89139.0,0.09548]
[1766974006815,0.00016789,89168.0,89141.0,0.0112282]
[1766974007112,9e-08,89168.0,89153.0,0.0112267]
[1766974007311,9e-08,89168.0,89132.0,0.05828]
[1766974007312,0.41628,89197.0,89154.0,0.15376]
[1766974007512,0.41628,89197.0,89155.0,0.1067064]
[1766974007513,0.1067012,89197.0,89155.0,0.1067064]
[1766974007728,0.09548,89199.0,89155.0,0.21887123]
[1766974007926,0.11260513,89200.0,89155.0,0.21887123]
[1766974008218,0.00016822,89186.0,89169.0,0.00016822]
[1766974008424,0.00016822,89186.0,89170.0,0.15376]
[1766974008626,0.00022419,89210.0,89176.0,0.11260513]
[1766974008812,0.00022419,89210.0,89176.0,0.0412238]
[1766974009014,0.00022419,89210.0,89178.0,0.0112236]
[1766974009223,0.00022419,89210.0,89179.0,0.09548]
[1766974009916,0.11260513,89200.0,89160.0,0.0112258]
[1766974010116,0.0112207,89202.0,89170.0,0.00896]
[1766974010316,0.0112207,89202.0,89170.0,0.11211516]
[1766974010619,0.0112217,89193.0,89168.0,0.09548]
[1766974010820,0.00022419,89210.0,89168.0,0.09548]
[1766974010821,0.09570419,89210.0,89172.0,0.0112243]
[1766974011016,0.00022419,89210.0,89172.0,0.0112243]
[1766974011218,0.00022419,89210.0,89180.0,0.0112233]
[1766974011519,0.00022419,89210.0,89182.0,0.011223]
[1766974011717,0.00022419,89210.0,89187.0,0.00016822]
[1766974011916,0.00022419,89210.0,89187.0,0.03016822]
[1766974012327,0.00022419,89210.0,89188.0,0.15368]
[1766974012727,0.37819077,89193.0,89188.0,0.1121095]
[1766974012933,0.27809077,89193.0,89187.0,0.09560822]
[1766974013140,0.00022419,89210.0,89187.0,0.09560822]
[1766974013326,0.00022419,89210.0,89188.0,0.1121095]
[1766974013817,0.0112201,89206.0,89189.0,0.09544]
[1766974014017,0.00022419,89210.0,89189.0,0.21878229]
[1766974014326,0.00022419,89210.0,89195.0,0.0112214]
[1766974014532,0.00022419,89210.0,89196.0,0.09544]
[1766974014933,0.00022419,89210.0,89197.0,0.11210825]
[1766974015116,0.00022419,89210.0,89197.0,0.05824]
[1766974015322,0.27419683,89210.0,89195.0,0.09544]
[1766974015518,0.0112206,89202.0,89187.0,0.00016822]
[1766974015829,0.28519254,89208.0,89188.0,0.15368]
[1766974016126,0.00224033,89273.0,89206.0,0.01122]
[1766974016332,0.09544,89261.0,89207.0,0.15368]
[1766974016532,0.0112161,89238.0,89208.0,0.15376]
[1766974016733,0.00016787,89232.0,89214.0,0.00016812]
[1766974016922,0.00016787,89232.0,89215.0,0.09544]
[1766974017120,0.011215,89247.0,89215.0,0.20755013]